bitfinex-derivatives/quotes_ETHF0:USTF0_20250426
["timestamp","ask_amount","ask_price","bid_price","bid_amount"]
[1745688274570,5.308,1804.2,1804.1,1.10823]
[1745688274761,5.308,1804.2,1804.0,1.10824]
[1745688274962,6.41617,1804.2,1804.0,1.10824]
[1745688275162,1.10833,1804.0,1803.8,4.31619]
[1745688275365,0.8189,1803.9,1803.8,4.31619]
[1745688275968,1.92725,1803.9,1803.7,2.69294]
[1745688276467,0.8189,1803.9,1803.8,1.10841]
[1745688276970,1.92725,1803.9,1803.7,2.76253]
[1745688277273,6.1269,1803.9,1803.8,1.10841]
[1745688279167,0.8189,1803.9,1803.8,1.10841]
[1745688281071,3.576,1804.0,1803.9,1.10835]
[1745688281273,4.68429,1804.0,1803.8,1.10836]
[1745688281674,3.576,1804.0,1803.9,1.10835]
[1745688282078,8.884,1804.0,1803.9,1.10835]
[1745688283679,9.99229,1804.0,1803.8,1.10837]
[1745688283979,1.5755,1803.9,1803.8,1.10837]
[1745688285076,3.576,1804.0,1803.9,1.10835]
[1745688286878,3.576,1804.0,1803.9,1.90235]
[1745688291183,6.7838,1804.3,1803.9,0.794]
[1745688291383,6.7838,1804.3,1804.2,1.10816]
[1745688291575,7.8919,1804.3,1804.2,1.10816]
[1745688291776,9.5919,1804.3,1804.2,1.10816]
[1745688291976,8.4838,1804.3,1804.2,1.10816]
[1745688292269,10.584,1804.3,1804.2,1.94536]
[1745688292478,11.6921,1804.3,1804.2,0.8372]
[1745688292680,14.98950457,1804.3,1804.2,0.8372]
[1745688292873,14.98950641,1804.3,1804.2,0.8372]
[1745688293078,14.98950497,1804.3,1804.2,0.8372]
[1745688293476,14.8999,1804.3,1804.2,0.8372]
[1745688293882,14.9895057,1804.3,1804.2,0.8372]
[1745688294085,14.8999,1804.3,1804.2,0.8372]
[1745688295179,14.98950497,1804.3,1804.2,0.8372]
[1745688295389,14.98950585,1804.3,1804.2,0.8372]
[1745688296087,14.8999,1804.3,1804.2,0.8372]
[1745688296982,14.8999,1804.3,1804.2,2.498]
[1745688298292,14.98950626,1804.3,1804.2,2.498]
[1745688298992,14.98950665,1804.3,1804.2,2.498]
[1745688299292,14.98950665,1804.3,1804.2,1.6608]
[1745688299489,1.10816,1804.2,1804.1,0.794]
[1745688299788,2.68076,1804.2,1804.1,0.794]
[1745688300185,7.98876,1804.2,1804.1,0.794]
[1745688300682,7.98876,1804.2,1804.1,2.5329]
[1745688301181,2.68076,1804.2,1804.1,2.5329]
[1745688301381,2.68076,1804.2,1804.1,1.7389]
[1745688302189,7.98876,1804.2,1804.1,1.7389]
[1745688304483,6.8806,1804.2,1804.1,2.84713]
[1745688304678,7.98876,1804.2,1804.1,2.84713]
[1745688305790,5.308,1804.2,1804.1,2.84713]
[1745688306190,3.576,1804.3,1804.2,1.10816]
[1745688306392,3.576,1804.3,1804.2,3.59236]
[1745688316595,5.2971,1804.3,1804.2,3.59236]
[1745688320490,5.2971,1804.3,1804.2,2.4842]
[1745688321092,10.6051,1804.3,1804.2,3.59236]
[1745688323200,11.7132,1804.3,1804.2,3.59236]
[1745688323398,11.7132,1804.3,1804.0,4.0142]
[1745688323600,1.5932,1804.2,1804.1,1.10817]
[1745688324192,6.9012,1804.2,1804.1,1.10817]
[1745688324697,6.9012,1804.2,1804.0,7.56284]
[1745688324698,8.00936,1804.2,1804.0,7.56284]
[1745688324900,2.3753,1804.1,1804.0,5.6482]
[1745688325303,2.3753,1804.1,1804.0,6.75649]
[1745688326302,2.3753,1804.1,1804.0,3.54869]
[1745688327102,2.3753,1804.1,1804.0,1.10829]
[1745688327302,3.48354,1804.1,1803.9,1.10831]
[1745688327503,1.5848,1804.0,1803.9,1.10831]
[1745688328799,1.5848,1804.0,1803.9,2.83141]
[1745688334102,0.7905,1804.1,1804.0,1.10829]
[1745688334304,4.7754,1804.2,1804.1,1.10823]
[1745688334499,5.583,1804.2,1804.1,1.10823]
[1745688335103,10.891,1804.2,1804.1,1.10823]
[1745688335504,11.99916,1804.2,1804.0,2.67694]
[1745688335706,1.5676,1804.1,1804.0,1.10824]
[1745688336207,6.8756,1804.1,1804.0,1.10824]
[1745688349613,5.308,1804.1,1804.0,1.10824]
[1745688350314,6.25811,1804.3,1804.2,1.10816]
[1745688350816,1.10816,1804.2,1804.1,1.6018]
[1745688351012,1.574,1804.2,1804.1,2.71003]
[1745688351211,6.882,1804.2,1804.1,2.71003]
[1745688353907,7.6964,1804.2,1804.1,2.71003]
[1745688354414,8.80456,1804.2,1804.1,1.6018]
[1745688354609,8.80461,1804.2,1804.0,1.10825]
[1745688354815,8.02721,1804.2,1804.1,1.10823]
[1745688355222,8.02721,1804.2,1804.0,1.10824]
[1745688355409,8.02721,1804.2,1804.1,1.10823]
[1745688356514,6.919,1804.2,1804.1,1.10823]
[1745688358517,5.308,1804.2,1804.1,1.10823]
[1745688358720,5.308,1804.2,1804.1,2.69603]
[1745688360329,5.308,1804.2,1804.1,10.90383]
[1745688361124,3.2078,1804.4,1804.3,1.1081]
[1745688361826,3.2078,1804.4,1804.3,2.7453]
[1745688363725,5.51349,1804.7,1804.5,1.10795]
[1745688364025,3.2078,1804.6,1804.4,2.7497]
[1745688364727,4.31572,1804.6,1804.4,2.7497]
[1745688365224,9.62372,1804.6,1804.4,2.7497]
[1745688365926,9.62372,1804.6,1804.5,1.10798]
[1745688367227,9.62372,1804.6,1804.4,2.7497]
[1745688367427,9.62372,1804.6,1804.4,1.6417]
[1745688367824,1.10804,1804.4,1804.3,1.6372]
[1745688368030,1.10804,1804.4,1804.2,2.84784]
[1745688368234,6.41604,1804.4,1804.2,3.69634]
[1745688369132,1.1081,1804.3,1804.2,2.5882]
[1745688369426,1.91375,1804.3,1804.1,1.92761]
[1745688370033,1.91375,1804.3,1804.1,3.66731]
[1745688370237,7.22175,1804.3,1804.1,3.66731]
[1745688371223,7.22175,1804.3,1804.2,1.10816]
[1745688371427,6.1136,1804.3,1804.2,1.10816]
[1745688371631,7.2217,1804.3,1804.2,1.10816]
[1745688372935,5.308,1804.3,1804.2,1.10816]
[1745688373134,6.7818,1804.4,1804.3,1.1081]
[1745688373338,6.7818,1804.4,1804.3,1.9729]
[1745688376130,12.0898,1804.4,1804.3,1.9729]
[1745688377141,6.7818,1804.4,1804.3,1.9729]
[1745688377842,8.3883,1804.4,1804.3,1.9729]
[1745688379242,6.7818,1804.4,1804.3,1.9729]
[1745688379939,3.574,1804.4,1804.3,1.9729]
[1745688380132,8.882,1804.4,1804.3,1.9729]
[1745688382547,5.308,1804.4,1804.3,1.9729]
[1745688383242,8.5174,1804.7,1804.6,1.10792]
[1745688383845,6.7818,1804.7,1804.6,1.10792]
[1745688384652,6.7818,1804.7,1804.6,1.94012]
[1745688386247,12.0898,1804.7,1804.6,1.94012]
[1745688388446,8.882,1804.7,1804.6,1.94012]
[1745688388643,8.882,1804.7,1804.6,1.10792]
[1745688389040,10.4711,1804.7,1804.6,1.10792]
[1745688390948,8.882,1804.7,1804.6,1.10792]
[1745688395244,3.574,1804.7,1804.6,1.10792]
[1745688401655,3.574,1804.7,1804.6,1.10792]
[1745688404349,4.3609,1804.7,1804.6,1.10792]
[1745688404548,6.0405,1804.7,1804.6,1.10792]
[1745688405156,11.3485,1804.7,1804.6,1.10792]
[1745688406458,10.5616,1804.7,1804.6,1.10792]
[1745688407157,5.2536,1804.7,1804.6,1.10792]
[1745688413467,4.0144,1804.9,1804.8,1.1078]
[1745688413962,5.7015,1804.9,1804.8,1.1078]
[1745688414265,5.7015,1804.9,1804.8,2.8105]
[1745688414566,2.4937,1804.9,1804.8,2.8105]
[1745688414866,3.572,1805.0,1804.9,1.10774]
[1745688415060,6.126,1805.0,1804.9,1.10774]
[1745688416254,11.434,1805.0,1804.9,1.10774]
[1745688421469,1.10783,1804.8,1804.6,4.31569]
[1745688421771,0.8556,1804.7,1804.6,1.10789]
[1745688422066,3.55006,1804.7,1804.5,1.10795]
[1745688422271,0.8357,1804.6,1804.5,1.10795]
[1745688422475,2.4258,1804.6,1804.5,1.10795]
[1745688423069,7.7338,1804.6,1804.5,1.10795]
[1745688423869,7.7338,1804.6,1804.4,4.3158]
[1745688424162,1.5901,1804.5,1804.4,1.108]
[1745688424873,2.69811,1804.5,1804.3,1.10807]
[1745688425076,5.17108,1804.4,1804.2,1.10815]
[1745688425376,9.3729,1804.4,1804.3,1.1081]
[1745688425575,7.635,1804.4,1804.3,1.1081]
[1745688426171,9.7352,1804.4,1804.3,1.1081]
[1745688426670,9.7352,1804.4,1804.3,3.6342]
[1745688427075,8.88,1804.4,1804.3,3.6342]
[1745688427272,3.572,1804.4,1804.3,3.6342]
[1745688433371,4.063,1804.6,1804.5,1.10798]
[1745688433983,4.063,1804.6,1804.5,1.97838]
[1745688434883,5.17092,1804.6,1804.5,1.97838]
[1745688435477,4.063,1804.6,1804.5,1.97838]
[1745688440186,3.2078,1804.6,1804.5,1.97838]
[1745688441192,4.6799,1804.7,1804.5,1.10793]
[1745688441693,4.6799,1804.7,1804.4,1.5959]
[1745688441993,4.6799,1804.7,1804.6,1.10792]
[1745688443188,9.9879,1804.7,1804.6,1.10792]
[1745688443979,10.5794,1804.7,1804.6,1.10792]
[1745688445392,10.5794,1804.7,1804.6,2.76732]
[1745688446286,3.572,1804.7,1804.6,2.76732]
[1745688448793,3.572,1804.7,1804.6,4.48942]
[1745688449291,1.5766,1804.8,1804.6,4.48942]
[1745688449497,0.8447,1804.9,1804.8,1.1078]
[1745688450092,2.4146,1804.9,1804.8,1.1078]
[1745688452091,7.7226,1804.9,1804.8,1.1078]
[1745688457096,10.9304,1804.9,1804.8,1.1078]
[1745688457296,12.03814,1804.9,1804.8,1.1078]
[1745688458196,12.03814,1804.9,1804.7,2.83701]
[1745688458401,12.03814,1804.9,1804.4,5.97788]
[1745688458402,1.10787,1804.7,1804.5,1.10794]
[1745688458705,2.4487,1804.6,1804.5,1.10794]
[1745688459001,2.4487,1804.6,1804.5,2.80474]
[1745688463201,3.571,1804.7,1804.6,1.10792]
[1745688463396,3.571,1804.7,1804.6,4.34852]
[1745688465002,3.2078,1804.9,1804.8,1.1078]
[1745688466207,8.5158,1804.9,1804.8,1.1078]
[1745688467605,5.308,1804.9,1804.8,1.1078]
[1745688468805,6.9956,1804.9,1804.8,1.1078]
[1745688472108,1.6876,1804.9,1804.8,1.1078]
[1745688473206,6.9956,1804.9,1804.8,1.1078]
[1745688476913,8.10334,1804.9,1804.8,1.1078]
[1745688477213,6.9956,1804.9,1804.8,1.1078]
[1745688478409,6.9956,1804.9,1804.6,1.6479]
[1745688478709,6.87591,1804.8,1804.6,1.10786]
[1745688478912,1.6983,1804.7,1804.6,1.10786]
[1745688479107,7.0063,1804.7,1804.6,1.10786]
[1745688480611,5.308,1804.7,1804.6,1.10786]
[1745688481313,3.49417,1804.9,1804.8,1.1078]
[1745688481913,2.69047,1804.9,1804.8,1.1078]
[1745688482413,7.99847,1804.9,1804.8,1.1078]
[1745688482613,6.8907,1804.9,1804.8,1.1078]
[1745688483611,6.8907,1804.9,1804.8,2.8295]
[1745688488419,5.308,1804.9,1804.8,2.8295]
[1745688491021,3.57,1805.6,1805.5,1.10737]
[1745688491322,1.6654,1805.5,1805.4,1.10743]
[1745688491717,4.8732,1805.5,1805.3,2.5386]
[1745688491919,4.8732,1805.5,1805.4,1.10743]
[1745688493422,5.98057,1805.5,1805.3,3.64605]
[1745688493727,1.7039,1805.4,1805.3,3.64605]
[1745688494226,7.0119,1805.4,1805.3,3.64605]
[1745688498137,5.308,1805.4,1805.3,3.64605]
[1745688498737,6.9022,1805.4,1805.3,3.64605]
[1745688499037,5.308,1805.4,1805.3,3.64605]
[1745688499641,5.308,1805.4,1805.3,8.64605]
[1745688500132,0.35758224,1805.7,1805.6,1.10731]
[1745688501139,0.35758224,1805.7,1805.6,1.90421]
[1745688502140,5.66558224,1805.7,1805.6,1.90421]
[1745688503236,0.35758224,1805.7,1805.6,5.11201]
[1745688503641,0.35758224,1805.7,1805.6,6.80571]
[1745688504341,3.2078,1806.9,1806.2,9.207]
[1745688504538,3.71419517,1806.8,1806.5,1.10672]
[1745688504738,6.01825,1806.7,1806.4,1.10678]
[1745688504939,1.7038,1806.6,1806.4,2.69258]
[1745688505136,1.7038,1806.6,1806.5,1.10675]
[1745688505643,1.7038,1806.6,1806.4,2.69259]
[1745688505848,1.7038,1806.6,1806.5,1.10675]
[1745688506050,1.7038,1806.6,1806.4,2.69258]
[1745688506241,7.0118,1806.6,1806.4,1.5858]
[1745688506741,5.308,1806.6,1806.4,1.5858]
[1745688506941,7.0118,1806.6,1806.4,2.69258]
[1745688507141,1.7038,1806.5,1806.4,2.69258]
[1745688507544,1.7038,1806.5,1806.4,2.69262]
[1745688507945,1.7038,1806.5,1806.4,1.5858]
[1745688508243,7.0118,1806.5,1806.4,1.5858]
[1745688508547,10.2196,1806.5,1806.2,0.8662]
[1745688508740,1.10688,1806.3,1806.1,2.81068]
[1745688508939,1.7024,1806.2,1806.1,2.81068]
[1745688509244,1.7024,1806.2,1806.1,1.7037]
[1745688509437,1.7024,1806.2,1806.1,2.8107]
[1745688510248,7.0104,1806.2,1806.1,2.8107]
[1745688512339,7.0104,1806.2,1806.0,2.83162]
[1745688512539,1.6901,1806.1,1806.0,2.83162]
[1745688513343,6.33436,1806.4,1806.1,1.10695]
[1745688513543,1.6759,1806.3,1806.1,2.67835]
[1745688514044,4.67486,1806.4,1806.1,2.67835]
[1745688514244,5.308,1806.3,1806.2,2.67833]
[1745688514848,6.9839,1806.3,1806.2,2.67833]
[1745688515643,8.09078,1806.3,1806.1,1.10697]
[1745688515845,1.6759,1806.2,1806.1,2.6784]
[1745688516044,6.9839,1806.3,1806.2,1.10694]
[1745688516244,1.6759,1806.3,1806.2,2.67834]
[1745688516756,3.568,1806.4,1806.3,1.10688]
[1745688517049,3.568,1806.4,1806.3,3.69618]
[1745688517250,9.98282,1806.4,1806.3,2.5893]
[1745688517449,11.69632,1806.4,1806.3,2.5893]
[1745688518050,11.69632,1806.4,1806.2,1.1069]
[1745688518256,8.876,1806.4,1806.3,1.10688]
[1745688518849,9.98282,1806.4,1806.3,1.7281]
[1745688519457,8.876,1806.4,1806.3,2.83498]
[1745688521456,5.308,1806.4,1806.3,6.04278]
[1745688522356,1.10663,1806.7,1806.5,1.10673]
[1745688522855,1.10665,1806.7,1806.5,1.10671]
[1745688523055,1.10665,1806.7,1806.5,1.89261]
[1745688523257,6.41465,1806.7,1806.5,3.60901]
[1745688525156,5.308,1806.7,1806.6,1.10669]
[1745688525355,5.308,1806.7,1806.6,2.82309]
[1745688526650,5.308,1806.7,1806.6,1.7164]
[1745688526952,6.41463,1806.7,1806.5,1.89264]
[1745688527147,6.1439,1806.7,1806.6,1.10669]
[1745688528153,6.1439,1806.7,1806.6,2.72989]
[1745688529360,6.1439,1806.7,1806.6,1.6232]
[1745688529748,6.1439,1806.7,1806.4,1.10678]
[1745688529950,7.25056,1806.7,1806.4,1.10678]
[1745688530150,0.7926,1806.6,1806.5,1.10675]
[1745688530551,6.1439,1806.7,1806.5,1.10675]
[1745688530751,7.25054,1806.7,1806.5,1.10675]
[1745688531160,6.1439,1806.7,1806.5,1.10675]
[1745688531564,6.1439,1806.7,1806.4,1.6058]
[1745688531858,6.1439,1806.7,1806.5,1.10672]
[1745688532654,7.25054,1806.7,1806.4,2.71258]
[1745688534056,1.6974,1806.6,1806.4,2.71258]
[1745688534258,1.6974,1806.6,1806.5,1.10675]
[1745688534562,1.6974,1806.6,1806.4,1.6058]
[1745688534563,5.308,1806.7,1806.6,1.10669]
[1745688534955,6.882,1806.7,1806.6,1.10669]
[1745688535155,6.882,1806.7,1806.6,3.48919]
[1745688535661,5.308,1806.7,1806.6,3.48919]
[1745688536354,4.31396,1807.5,1806.9,2.76628]
[1745688536559,4.31396,1807.5,1806.8,9.191]
[1745688536560,3.2078,1807.5,1807.0,5.6339]
[1745688536761,1.574,1807.4,1807.2,1.10629]
[1745688537061,2.4056,1807.4,1807.3,1.10626]
[1745688537263,12.1388,1807.5,1807.4,1.1062]
[1745688538360,8.931,1807.5,1807.4,1.1062]
[1745688539258,8.931,1807.5,1807.4,1.9167]
[1745688540058,8.931,1807.5,1807.4,0.8105]
[1745688540260,8.931,1807.5,1807.4,1.9167]
[1745688540461,8.931,1807.5,1807.4,2.453]
[1745688540666,10.6493,1807.5,1807.4,2.7487]
[1745688541366,10.6493,1807.5,1807.4,1.6425]
[1745688542060,8.931,1807.5,1807.4,2.7487]
[1745688543960,5.308,1807.5,1807.4,10.9565]
[1745688544365,5.308,1807.5,1807.4,11.1673]
[1745688544861,5.308,1807.5,1807.4,14.7893]
[1745688545067,7.93562,1808.1,1807.8,1.10596]
[1745688545267,1.7078,1808.0,1807.8,1.10596]
[1745688545565,1.7078,1808.0,1807.9,1.6409]
[1745688545761,1.7078,1808.0,1807.9,2.7468]
[1745688545961,8.7467,1808.3,1807.9,1.6409]
[1745688546168,1.7078,1808.2,1808.1,1.10577]
[1745688546370,2.81351,1808.2,1808.0,2.74669]
[1745688546670,8.93,1808.3,1808.0,1.6409]
[1745688546857,11.63801,1808.3,1808.0,1.6409]
[1745688547063,14.8458,1808.3,1808.1,1.10577]
[1745688547266,6.9103,1808.3,1808.1,1.10576]
[1745688547871,8.01597,1808.3,1808.1,1.10577]
[1745688548262,1.10572,1808.2,1808.0,2.74669]
[1745688548567,1.6023,1808.2,1808.0,2.74669]
[1745688548767,1.6023,1808.2,1808.1,1.10577]
[1745688549167,6.9103,1808.2,1808.1,1.10577]
[1745688549369,8.01601,1808.2,1808.0,2.74669]
[1745688549574,4.8101,1808.1,1807.8,1.10591]
[1745688549760,2.477,1808.0,1807.9,1.1059]
[1745688549962,6.8288,1808.1,1808.0,1.10584]
[1745688550163,13.8009,1808.1,1807.9,1.10585]
[1745688550366,1.6641,1808.0,1807.8,1.577]
[1745688550673,1.10592,1807.9,1807.7,1.93508]
[1745688550971,1.6641,1807.8,1807.6,3.2078]
[1745688551161,6.8288,1807.7,1807.4,1.31699]
[1745688551365,1.6641,1807.6,1807.5,1.10612]
[1745688551766,1.6641,1807.6,1807.4,2.68316]
[1745688552171,8.07818,1807.6,1807.4,2.68316]
[1745688552469,3.2078,1807.5,1807.1,1.013]
[1745688552674,1.10642,1807.1,1806.8,2.75623]
[1745688552869,1.607,1807.0,1806.9,1.10651]
[1745688553072,6.915,1807.0,1806.9,2.72051]
[1745688553875,6.915,1807.0,1806.8,1.6497]
[1745688554078,1.10657,1806.9,1806.7,1.614]
[1745688554278,1.607,1806.8,1806.7,1.614]
[1745688554571,1.607,1806.8,1806.6,1.15908]
[1745688554772,1.607,1806.8,1806.7,1.10663]
[1745688555172,6.915,1806.8,1806.7,1.10663]
[1745688555368,6.915,1806.8,1806.6,1.66639]
[1745688555572,1.10663,1806.7,1806.6,0.05239]
[1745688555775,2.81313,1806.7,1806.6,0.05239]
[1745688556072,1.10694,1806.2,1806.0,0.2108]
[1745688556371,1.10697,1806.2,1805.9,1.10709]
[1745688556576,0.8433,1806.6,1806.1,3.2078]
[1745688556778,1.7065,1806.6,1806.5,1.10675]
[1745688557071,1.7065,1806.6,1806.3,3.2078]
[1745688557381,1.7065,1806.6,1806.2,1.6339]
[1745688557565,5.57209,1806.5,1806.2,2.74083]
[1745688557772,1.7065,1806.4,1806.3,1.10688]
[1745688558080,1.7065,1806.4,1806.2,2.7408]
[1745688558781,1.7065,1806.4,1806.2,1.6339]
[1745688559377,1.7065,1806.4,1806.3,1.10688]
[1745688560077,1.7065,1806.4,1806.2,2.74081]
[1745688560483,1.7065,1806.4,1805.7,5.019]
[1745688560666,1.7065,1806.4,1806.1,1.10699]
[1745688560667,2.81335,1806.4,1806.1,1.10699]
[1745688560870,2.81335,1806.4,1806.2,1.6004]
[1745688561076,4.9143,1806.4,1806.2,1.6004]
[1745688561375,5.3755,1806.4,1806.2,2.70731]
[1745688561571,4.5133,1806.5,1806.3,1.10688]
[1745688561772,5.62005,1806.5,1806.4,1.6004]
[1745688562271,4.5133,1806.5,1806.4,1.6004]
[1745688562671,5.62005,1806.5,1806.2,1.1069]
[1745688562871,1.10682,1806.4,1806.2,1.6874]
[1745688563078,4.5133,1806.5,1806.3,1.10688]
[1745688563577,3.67,1806.5,1806.4,1.6874]
[1745688563776,3.2078,1806.7,1806.4,1.6874]
[1745688563777,6.8778,1806.7,1806.6,1.10669]
[1745688564376,6.8778,1806.7,1806.5,2.75241]
[1745688564577,6.8778,1806.7,1806.5,2.74789087]
[1745688565071,12.1858,1806.7,1806.5,2.74790087]
[1745688565271,12.1858,1806.7,1806.6,1.7025]
[1745688565675,8.5158,1806.7,1806.6,2.80919]
[1745688566074,8.5158,1806.7,1806.6,1.7025]
[1745688566581,8.5158,1806.7,1806.6,2.80919]
[1745688567185,3.2078,1806.7,1806.6,2.80919]
[1745688568393,3.67,1806.8,1806.7,1.10663]
[1745688569192,8.978,1806.8,1806.6,2.80916]
[1745688569397,8.978,1806.8,1806.6,1.7025]
[1745688569779,8.978,1806.8,1806.7,1.10663]
[1745688570486,10.08461,1806.8,1806.5,2.74789087]
[1745688570686,1.10663,1806.7,1806.5,1.89021]
[1745688570995,8.978,1806.8,1806.5,1.89021]
[1745688571192,1.10665,1806.7,1806.5,1.89021]
[1745688571394,4.77662,1806.8,1806.5,1.89021]
[1745688571583,1.10665,1806.7,1806.5,1.10671]
[1745688571789,3.67,1806.8,1806.4,1.5762]
[1745688571995,3.67,1806.8,1806.7,1.10663]
[1745688572696,3.2078,1807.0,1806.5,3.2078]
[1745688572888,6.8778,1807.0,1806.7,3.2078]
[1745688573090,6.8778,1807.0,1806.9,1.10651]
[1745688573989,8.491,1807.0,1806.9,1.10651]
[1745688574189,13.799,1807.0,1806.9,1.10651]
[1745688577497,5.308,1807.0,1806.9,1.10651]
[1745688577699,5.308,1807.0,1806.9,2.80561]
[1745688578997,6.9813,1807.0,1806.9,2.80561]
[1745688579494,5.308,1807.0,1806.9,2.80561]
[1745688581695,5.308,1807.0,1806.9,15.20441]
[1745688582087,1.6089,1807.4,1807.2,1.10627]
[1745688582294,1.6089,1807.4,1807.0,1.5959]
[1745688582798,1.6089,1807.4,1807.3,1.10626]
[1745688583197,6.9169,1807.4,1807.3,1.10626]
[1745688583388,1.10629,1807.3,1807.1,1.10635]
[1745688583603,6.71801,1807.3,1807.1,1.10637]
[1745688583792,1.10633,1807.2,1807.1,1.10637]
[1745688584099,2.68033,1807.2,1807.1,1.10639]
[1745688584292,1.574,1807.2,1807.1,1.10639]
[1745688585098,7.98833,1807.2,1807.1,1.10639]
[1745688585301,7.6959,1807.2,1807.1,1.10639]
[1745688587099,12.47225,1807.2,1807.0,1.10641]
[1745688587302,1.5751,1807.1,1807.0,1.10641]
[1745688587491,1.5751,1807.1,1807.0,2.73251]
[1745688588199,6.8831,1807.1,1807.0,2.73251]
[1745688588799,6.8831,1807.1,1807.0,1.10641]
[1745688592995,7.98949,1807.1,1807.0,1.10641]
[1745688593298,1.10645,1807.0,1806.9,3.2078]
[1745688593495,2.70545,1807.0,1806.9,3.2078]
[1745688594198,8.01345,1807.0,1806.9,3.2078]
[1745688594395,8.01345,1807.0,1806.9,4.31431]
[1745688594607,8.01345,1807.0,1806.9,3.2078]
[1745688594802,6.907,1807.0,1806.9,4.31431]
[1745688595906,6.907,1807.0,1806.9,1.10651]
[1745688599503,8.01345,1807.0,1806.8,1.10654]
[1745688599815,3.62683,1806.9,1806.7,3.2078]
[1745688600104,1.6755,1806.8,1806.7,4.31443]
[1745688600409,1.6755,1806.8,1806.7,5.89793]
[1745688601304,6.9835,1806.8,1806.7,5.89793]
[1745688602008,5.308,1806.8,1806.7,5.89793]
[1745688602403,6.9405,1806.8,1806.7,5.89793]
[1745688602602,6.9405,1806.8,1806.7,4.31443]
[1745688603107,6.9405,1806.8,1806.7,5.99123]
[1745688603310,5.308,1806.8,1806.7,5.99123]
[1745688605207,5.25560999,1806.8,1806.7,10.99123]
[1745688606213,1.6651,1807.1,1807.0,1.10645]
[1745688607107,6.9731,1807.1,1807.0,1.10645]
[1745688607413,5.308,1807.1,1807.0,1.10645]
[1745688607813,5.308,1807.1,1807.0,3.47995]
[1745688608811,6.9676,1807.1,1807.0,3.47995]
[1745688610719,5.308,1807.1,1807.0,3.47995]
[1745688612115,5.308,1807.1,1807.0,17.67095]
[1745688613114,5.308,1807.1,1807.0,12.67095]
[1745688614214,5.308,1807.1,1807.0,3.47995]
[1745688619229,6.8838,1807.1,1807.0,3.47995]
[1745688619829,10.0916,1807.1,1807.0,1.10645]
[1745688620826,6.8838,1807.1,1807.0,1.10645]
[1745688628925,6.8838,1807.1,1807.0,2.78465]
[1745688629424,5.308,1807.1,1807.0,11.97565]
[1745688629828,5.308,1807.1,1807.0,16.97565]
[1745688630518,5.308,1807.1,1807.0,2.78465]
[1745688630923,6.1661,1807.1,1807.0,1.10645]
[1745688631818,7.7742,1807.1,1807.0,1.10645]
[1745688634528,8.88062,1807.1,1806.9,1.10647]
[1745688634728,2.5097,1807.0,1806.9,1.10647]
[1745688634933,9.3655,1807.0,1806.8,1.10657]
[1745688635234,1.6646,1806.9,1806.8,1.10657]
[1745688636237,6.9726,1806.9,1806.8,1.10657]
[1745688637234,5.308,1806.9,1806.8,1.10657]
[1745688637736,5.308,1806.9,1806.8,2.79647]
[1745688640226,6.8921,1806.9,1806.8,1.10657]
[1745688642135,15.0999,1806.9,1806.3,3.2078]
[1745688642341,3.2078,1806.7,1806.2,1.10689]
[1745688642543,1.10676,1806.5,1806.3,1.10683]
[1745688642739,1.6332,1806.4,1806.3,1.10683]
[1745688642940,2.4825,1806.4,1806.3,1.10683]
[1745688643240,1.6332,1806.4,1806.3,1.10683]
[1745688643540,1.6332,1806.4,1806.3,2.76633]
[1745688645039,0.8316,1806.6,1806.5,1.10675]
[1745688645240,6.8558,1806.7,1806.6,1.10669]
[1745688646343,6.8558,1806.7,1806.6,2.84089]
[1745688647237,12.1638,1806.7,1806.6,2.84089]
[1745688648439,8.5158,1806.7,1806.6,2.84089]
[1745688649638,8.5158,1806.7,1806.6,12.03189]
[1745688651346,5.308,1806.7,1806.6,12.03189]
[1745688651841,5.308,1806.7,1806.6,2.84089]
[1745688652046,6.991,1806.7,1806.6,2.84089]
[1745688652245,6.991,1806.7,1806.6,1.10669]
[1745688653446,8.09763,1806.7,1806.6,1.10669]
[1745688653646,11.73663,1806.7,1806.5,1.10671]
[1745688653844,1.10678,1806.5,1806.3,6.78103]
[1745688654148,2.5424,1806.4,1806.3,1.10688]
[1745688654835,2.5424,1806.4,1806.3,2.74318]
[1745688655149,7.8504,1806.4,1806.3,2.74318]
[1745688656147,2.5424,1806.4,1806.3,2.74318]
[1745688659348,7.8504,1806.4,1806.3,2.74318]
[1745688660645,8.95725,1806.4,1806.1,3.2078]
[1745688660847,6.0883,1806.3,1806.2,1.10688]
[1745688661252,11.3963,1806.3,1806.2,1.10688]
[1745688662545,10.5627,1806.3,1806.2,1.10688]
[1745688662743,10.5627,1806.3,1806.2,3.65128]
[1745688664254,5.2547,1806.3,1806.2,3.65128]
[1745688664649,3.639,1806.3,1806.2,3.65128]
[1745688664848,3.639,1806.3,1806.2,4.49828]
[1745688665051,0.0264,1806.4,1806.3,1.10688]
[1745688665244,0.0264,1806.4,1806.3,2.77168]
[1745688666457,0.0264,1806.4,1806.1,3.2078]
[1745688666458,1.13323,1806.4,1806.1,3.2078]
[1745688666753,1.669,1806.3,1806.2,1.10694]
[1745688667255,6.977,1806.3,1806.2,1.10694]
[1745688669649,11.72288,1806.3,1806.2,1.10694]